Cogmind - Beta 16 @@@ ROGUE MODE // 2026.01.03 @ 21:21:48 Player: Bloop Result: Destroyed by G-34 Mercenary with Small Laser Performance ------------- Evolutions (0) 0 Regions Visited (1) 200 Robots Destroyed (20) 100 Value Destroyed (264) 264 Prototype IDs (0) 0 Alien Tech Used (0) 0 Bonus (0) 0 TOTAL SCORE: 564 Bonus ------- None Cogmind --------- Core Integrity 0/250 Matter 300/300 Energy 100/100 System Corruption 0% Temperature Cool (12) Movement Core (200) Ox3 Location -10/Materials Parts ------- > --- POWER (1) -------- (None) > --- PROPULSION (2) --- (None) > --- UTILITY (2) ------ Medium Storage Unit > --- WEAPON (2) ------- Hammer > --- INVENTORY (10) --- Light Ion Engine Aluminum Leg Aluminum Leg EM Pulse Gun Beam Cannon Assault Rifle Light Assault Rifle Hammer Peak State ------------ > --- POWER ------------ Ion Engine > --- PROPULSION ------- Aluminum Leg Aluminum Leg > --- UTILITY ---------- Small Storage Unit ECM Suite > --- WEAPON ----------- EM Pulse Gun Hammer > --- INVENTORY -------- Light Ion Engine Assault Rifle Light Assault Rifle Hammer [Rating: 7] Favorites ----------- Power Ion Engine Engine Ion Engine Propulsion Aluminum Leg Leg Aluminum Leg Utility Small Storage Unit Device ECM Suite Storage Small Storage Unit Weapon Hammer Energy Gun EM Pulse Gun Ballistic Gun Assault Rifle Impact Weapon Hammer Special Melee Weapon Datajack Build | -11 -10 ------- Run | Yrd Mat Slots Evolved . | . . Power . | . . Propulsion . | . . Utility . | . . Weapon . | . . Parts Attached 19 | 6 13 Power 4 | 1 3 Engine 4 | 1 3 Core . | . . Reactor . | . . Propulsion 6 | 2 4 Treads . | . . Leg 6 | 2 4 Wheel . | . . Hover . | . . Flight . | . . Utility 3 | 1 2 Device 1 | . 1 Storage 2 | 1 1 Processor . | . . Hackware . | . . Protection . | . . Artifact . | . . Weapon 6 | 2 4 Energy Gun 1 | . 1 Energy Cannon . | . . Ballistic Gun 2 | 2 . Ballistic Cannon . | . . Launcher . | . . Special Weapon . | . . Impact Weapon 2 | . 2 Slashing Weapon . | . . Piercing Weapon . | . . Special Melee Weapon 1 | . 1 Unidentified Prototypes . | . . Parts Lost 7 | . 7 Power 2 | . 2 Propulsion 3 | . 3 Utility 1 | . 1 Weapon 1 | . 1 Highest Loss Streak 4 | . 4 To Critical Strikes 1 | . 1 Average Backups 5 | 1 6 Power 1 | . 1 Propulsion . | . 1 Utility . | . . Weapon 3 | . 4 Tool/Special . | . . Unused Backups 1 | . 1 Power . | . . Propulsion . | . . Utility . | . . Weapon 1 | . 1 Tool/Special . | . . Average Slot Usage (%) 90 | . 90 Engine 13 | . 13 Leg 26 | . 26 Device 12 | . 12 Storage 14 | . 14 Energy Gun 1 | . 1 Ballistic Gun 3 | . 3 Impact Weapon 13 | . 13 Special Melee Weapon 2 | . 2 Peak Build Rating 7 | 6 7 Average Rating 6 | 5 6 On Entrance 3 | . 6 Avg Prop Armor Cover (%) . | . . Naked Turns . | . . Heaviest Build 17 | 13 17 Greatest Support 20 | 20 20 Greatest Overweight (x) 3 | . 3 Average Overweight (x) . | . . Largest Inventory Capacity 10 | 8 10 Average Capacity 8 | 7 8 Most Carried 8 | 2 8 Average Carried 6 | 1 6 Final Capacity 10 | 8 10 Final Carried 8 | 2 8 Class Distribution -------------------- 100% | Mutant Dominant Class ---------------- Mutant | -10/Materials Resources | -11 -10 ----------- Run | Yrd Mat Matter Collected 330 | 204 126 Remotely . | . . Salvage Created 452 | . 452 Parts 17 | . 17 Haulers Intercepted . | . . Recyclers Shooed . | . . Parts Field Recycled . | . . Retrieved Matter . | . . Parts Self-Destructed . | . . Prevented . | . . Parts Restored . | . . Kills | -11 -10 ------- Run | Yrd Mat Combat Hostiles Destroyed 12 | . 12 Melee 6 | . 6 AOE 3 | . 3 Classes Destroyed 8 | . 8 Worker 3 | . 3 Builder 1 | . 1 Recycler 1 | . 1 Mechanic 1 | . 1 Operator 1 | . 1 Watcher 1 | . 1 Swarmer 9 | . 9 Grunt 3 | . 3 Best Kill Streak 5 | . 5 Combat Bots Only 3 | . 3 Max Kills in Single Turn 3 | . 3 Gunslinging . | . . Exploded 3 | . 3 Melee 1 | . 1 Uniques/NPCs Destroyed . | . . Combat | -11 -10 -------- Run | Yrd Mat Hostile Shots Fired 150 | . 150 Missed 42 | . 42 Hits 108 | . 108 Projectile 108 | . 108 Critical Strikes 1 | . 1 Damage Taken 1109 | . 1109 Core 259 | . 259 Absorbed by Shields . | . . Core Remaining (%) 100 | 100 . Volleys Fired 1 | . 1 Largest 1 | . 1 Hottest 40 | . 40 Shots Fired 1 | . 1 Gun 1 | . 1 Cannon . | . . Launcher . | . . Special . | . . Kinetic . | . . Thermal . | . . Explosive . | . . Electromagnetic 1 | . 1 Robot Hit Streak 1 | . 1 Robot Miss Streak . | . . Penetration Max . | . . Secondary Targets . | . . Shots Hit Robots 43 | . 43 Core Hits 15 | 6 9 Critical Kills 2 | . 2 Critical Parts Destroyed 2 | . 2 Critical Strikes 4 | . 4 Smash 4 | . 4 Melee Attacks 52 | . 52 Impact 43 | . 43 Slashing . | . . Piercing . | . . Sneak Attacks 12 | . 12 Combat Hostiles . | . . Follow-up Attacks . | . . Damage Inflicted 1111 | 35 1076 Guns 11 | . 11 Cannons . | . . Explosions 62 | . 62 Melee 1003 | . 1003 Ramming 35 | 35 . Kinetic . | . . Thermal 62 | . 62 Explosive . | . . Electromagnetic 11 | . 11 Impact 1003 | . 1003 Slashing . | . . Piercing . | . . Highest Corruption . | . . Average Corruption . | . . Corruption Purged . | . . Corruption Blocked . | . . Overload Shots . | . . Overflow Damage 235 | . 235 Projectiles . | . . Explosions . | . . Melee 235 | . 235 Knockbacks 3 | . 3 Impact 3 | . 3 Kinetic . | . . Secondary . | . . Self-Inflicted Damage 40 | . 40 Shots 1 | . 1 Rammed . | . . Targets Rammed 15 | 15 . Kicked 15 | 15 . Crushed . | . . Highest Temperature 12 | . 12 Average Temperature 7 | . 7 Received Heat Transfer 357 | . 357 Siege Activations . | . . Martial Activations . | . . Shielding Activations . | . . Robots Disrupted . | . . Combat Hostiles . | . . Robots Corrupted 7 | . 7 Combat Hostiles 3 | . 3 Parts Fried 13 | . 13 Impact Corruptions 14 | . 14 Robots Melted . | . . Combat Hostiles . | . . Parts Melted . | . . Heat Transferred 50 | . 50 Parts Sabotaged . | . . Parts Stolen . | . . Parts Stripped . | . . Power Chain Reactions 1 | . 1 Alert | -11 -10 ------- Run | Yrd Mat Maximum Alert Level . | . . Low Security (%) 100 | 100 100 Level 1 . | . . Level 2 . | . . Level 3 . | . . Level 4 . | . . Level 5 . | . . High Security . | . . Max Security . | . . Peak Influence 90 | . 90 Initial . | . . Average 33 | . 40 Influence Increases 340 | . 340 Destroy 0b10 Robot/C 240 | . 240 Destroy 0b10 Robot/NC 40 | . 40 Destroy Leader 52 | . 52 Successful Hack 5 | . 5 Destroy Structure 3 | . 3 Influence Decreases 340 | . 340 Time Decay 292 | . 292 Lost Part 48 | . 48 Squads Dispatched 3 | . 3 Investigation 1 | . 1 Extermination . | . . Reinforcement 2 | . 2 Assault . | . . Garrison . | . . Intercept . | . . Searches Triggered . | . . Construction Impeded . | . . Haulers Reinforced . | . . Active Scanning Responses . | . . Cargo Convoy Interrupts . | . . Stealth | -11 -10 --------- Run | Yrd Mat Distress Signals 1 | . 1 Communications Jammed . | . . Distress Signals . | . . Times Spotted 32 | . 32 Peak Tracking Total 5 | . 5 Tactical Retreats 2 | . 2 ECM-based Alert Blocks 2 | . 2 Traps | -11 -10 ------- Run | Yrd Mat Traps Triggered 1 | . 1 Indirectly . | . . Trap Hack Attempts . | . . Triggered . | . . Disarmed . | . . Reprogrammed . | . . Reused . | . . Traps Extracted . | . . Installed . | . . Triggered . | . . Machines | -11 -10 ---------- Run | Yrd Mat Machines Disabled . | . . Max in Single Turn . | . . Machines Repaired . | . . Machines Dismantled . | . . Machines Sabotaged . | . . Overloaded Fab Kills . | . . Hacking | -11 -10 --------- Run | Yrd Mat Machines Accessed 1 | . 1 Terminals 1 | . 1 Fabricators . | . . Repair Stations . | . . Recycling Units . | . . Scanalyzers . | . . Garrison Access . | . . Total Hacks 1 | . 1 Successful 1 | . 1 Failed . | . . Catastrophic . | . . Database Lockouts . | . . Manual . | . . Terminals 1 | . 1 Fabricators . | . . Repair Stations . | . . Recycling Units . | . . Scanalyzers . | . . Garrison Access . | . . Terminal Hacks 1 | . 1 Transport Status 1 | . 1 Fabricator Hacks . | . . Repair Station Hacks . | . . Recycling Unit Hacks . | . . Scanalyzer . | . . Garrison Access Hacks . | . . Unauthorized Hacks . | . . Terminals . | . . Fabricators . | . . Repair Stations . | . . Recycling Units . | . . Scanalyzers . | . . Garrison Access . | . . Data Cores Recovered . | . . Used . | . . Hacking Detections . | . . Full Trace Events . | . . Feedback Events . | . . Feedback Blocked . | . . Robot Schematics Acquired . | . . Robots Built . | . . Authchips . | . . Time . | . . Total Robot Build Rating . | . . Part Schematics Acquired . | . . Parts Built . | . . Authchips . | . . Time . | . . Total Part Build Rating . | . . Part Studies Acquired . | . . Parts Repaired . | . . Time . | . . Parts Recycled . | . . Recycled Matter . | . . Retrieved Matter . | . . Retrieved Components . | . . Parts Scanalyzed . | . . Part Schematics Acquired . | . . Parts Damaged . | . . Bothacking | -11 -10 ------------ Run | Yrd Mat Used RIF Installer . | . . Robots Hacked 3 | . 3 Non-combat 2 | . 2 Combat 1 | . 1 Robot Hacks Applied 4 | . 4 parse_system 2 | . 2 no_distress 1 | . 1 find_station 1 | . 1 Relay Couplers Released . | . . Fabnet Peak Effective % . | . . Robots Rewired . | . . Allies Hacked . | . . Hacks Repelled . | . . Allies | -11 -10 -------- Run | Yrd Mat Total Allies . | . . Largest Group . | . . Highest-Rated Group . | . . Highest-Rated Ally . | . . Total Orders . | . . Ally Attacks . | . . Total Damage . | . . Kills . | . . Allies Corrupted . | . . Allies Melted . | . . Intel | -11 -10 ------- Run | Yrd Mat Active Infowar (turns) 723 | . 723 ECM 723 | . 723 Robot Analysis Total . | . . Derelict Logs Recovered . | . . Drone Launches . | . . Drone Recoveries . | . . Exploration | -11 -10 ------------- Run | Yrd Mat Turns Passed 922 | 153 769 Spaces Moved 592 | 105 487 Core 3 | 2 1 Treads . | . . Legs 589 | 103 486 Wheels . | . . Hover . | . . Flight . | . . Fastest Speed 50 | 50 120 Average Speed 121 | 118 122 Slowest Speed 200 | 120 200 Overloaded Moves . | . . Propulsion Burnouts . | . . Robots Hopped . | . . Potential Cave-ins . | . . Cave-ins Triggered . | . . Exploration Rate (%) 40 | 6 75 Regions Visited 1 Branch Regions . Pre-discovered Areas . | . . Known Exits Taken . | . . Unknown Exits Taken 1 | 1 . Scrap Searched . | . . Spaces Dug . | . . Terrain Destroyed 2 | . 2 Melee . | . . Projectile . | . . AOE 2 | . 2 Terrain Rammed . | . . Walls Destroyed . | . . Machines Disabled . | . . Actions | -11 -10 --------- Run | Yrd Mat Total 706 | 127 579 Wait 15 | . 15 Move 591 | 104 487 Hop . | . . Pick Up 5 | 2 3 Fast Attach 10 | 6 4 Attach 2 | . 2 Detach 3 | . 3 Swap 9 | . 9 Drop 3 | . 3 Fire 1 | . 1 Melee 52 | . 52 Ram . | . . Kick 15 | 15 . Crush . | . . Escape Stasis . | . . Rewire . | . . Trap . | . . Miscellaneous . | . . Route ------- -11/Scrapyard -10/Materials (discovered 4 exits: [*Mat x2] / [*Min x2]) History --------- Turn | Location | Event 2 | -11/Scrapyard | Met Revision 17 9 | -11/Scrapyard | Discovered new exit (range 15) 154 | -11/Scrapyard | Entered Materials 263 | -10/Materials | Discovered new exit (range 7) 302 | -10/Materials | Build established: Mutant 366 | -10/Materials | Discovered new exit (range 15) 841 | -10/Materials | Discovered new exit (range 10) 903 | -10/Materials | Discovered new exit (range 16) 908 | -10/Materials | Core integrity fell below 50% 922 | -10/Materials | Core integrity fell below 20% 923 | -10/Materials | Destroyed by G-34 Mercenary with Small Laser Last Messages --------------- 00883_ T-07 Excavator is excavating. 00885_ O-16 Technician: "IFF HANDSHAKE FAILED. SECURING TERMINAL." 00887_ T-07 Excavator is excavating. 00891_ ALERT: Hostiles spotted, dispatching reinforcements to Terminal M002. 00896_ T-07 Excavator is excavating. 00898_ U-05 Engineer lays Concrete. 00899_ Triggered Alarm Trap. 00899_ An alarm sounds. 00899_ ALERT: Alarm triggered, dispatching investigation squad. 00899_ U-05 Engineer lays Concrete. 00900_ T-07 Excavator is excavating. 00900_ U-05 Engineer lays Concrete. 00903_ EXIT=FOUND 00903_ U-05 Engineer lays Concrete. 00903_ ECM Suite destroyed. 00910_ U-05 Engineer lays Concrete. 00915_ Aluminum Leg destroyed. 00917_ Lgt. Ion Engine destroyed. 00918_ Aluminum Leg destroyed. Map ----- +----------------------------------------------------+ | ?????????????????????????????????????????? | | ?????????????????????????????????????????? | | ?????????????????????????????????????????? | | ?????????????????????????????????????????? | | ?????????????????????????????????????????? | | ?????????????????????????????????????????? | | ?????????????????????????????????????????? | | ###############??????????????????????????? | | # ?????????????????????????? | | + ???????????????????????????? | | # T """""??????????????????????????????? | | # """""??????????????????????????????? | | # """""??????????????????????????????? | | # """""??????????????????????????????? | | # """"""" ????????????????????????? | | ???????????????????????? | | ???????????????????????? | | #??????????????????????? | | +############## #?????#########????????? | | #??????? #?????# !!#????????? | | "" """ #??????? #?????# < !!#????????? | | "" """ #??????? #?????# ==#????????? | | "" """ #??????? #?????+ ==#????????? | | "" """ #??????# #?????#o g ==#????????? | | #??????# #?????#ggg ==#????????? | | ####+###??????# #?????#@ g#????????????? | | #??# #????????# #??#### #????????????? | | #??# #????????# #?##! #????????????? | | #??# #????????# #?#! #????????????? | | #??# #???###### #?#! #????????????? | | #### ##### %% #?#! ##???????????? | | +% % % % #?#! T#???????????? | | ########## %% #?##! ##???????????? | | ########## = #??#### #????????????? | | # ## ####### #????????????? | | # # #????????????? | | < # !# ###??????????? | | # # # #?????????? | | #" "## !! # + #?????????? | | #" !"! "## = # # # #?????????? | | #"""""""## + # ####?????????? | | ??######## # # #????????????? | | ??# + # + #????????????? | | ??# # """ # ### #????????????? | | ??# " " # """ # #?# #????????????? | | ??# "R" + """ # #?# #????????????? | | ??# """ # # #?# #????????????? | | ??# # #######?# #????????????? | | ########## #####/###??????# #????????????? | | """"" # ## #??????# #????????????? | +----------------------------------------------------+ Best States ------------- Heat Dissipation 25 Energy Generation 10 Energy Capacity 250 Matter Stores 300 Matter Capacity 300 Sight Range 16 Terrain Scan Density 10 ECM Strength 1 Evasion (%) 55 Item Schematics ----------------- None Robot Schematics ------------------ None Fabricated ------------ Nothing Repaired ---------- Nothing Studied --------- None Alien Tech Used ----------------- None Achievements -------------- Not Today, Chutes Challenges ------------ None Game ------ Seed NavigationBiomechanicalWeb Manual? 0 Play Time 00:12:18 Cumulative 4.9 hours Start 2026.01.03 @ 21:13:24 End 2026.01.03 @ 21:21:48 Sessions 1 Manual Loads 0 Difficulty Rogue Special Mode None Game No. 12 Rogue 12 Adventurer 0 Explorer 0 Win Type - Total 0 Types 0/0/0/0/0/0/0/0/0/0 Lore% 2 Gallery% 8 Achievement% 10 Wizard Run 0 Options --------- Layout 1 ASCII 0 Keyboard 0 Movement Arrows Keybinds 0 Fullscreen 1 Font 24/Smallcaps Map View 76x35 Zoom Use 0% Tactical HUD 1 Map Filters NONE Filters NONE Steam 1 RUN: 8c2d2fed-d08d-415d-8bc2-4460e0098ee2